Workbook

Sheet ORÇAMENTO
A1: <---- NUMERAR SERVIÇOS PARA CPU | C1: Ministério da Integração Nacional
C2: Companhia de Desenvolvimento dos Vales do São Francisco e do Parnaíba
C3: 1ª Superintendência Regional
B5: OBRA: | C5: CONSTRUÇÃO DE PONTE SOBRE O RIO SÃO DOMINGOS (CONTINUAÇÃO)
B6: LOCAL: | C6: BURITIS - MG
B7: DATA: | C7: NOVEMBRO / 2023 | G7: BDI Serviços: | I7: ='BDI SERV'!D31/100 -> 0.2603
B8: PRAZO DE EXECUÇÃO: 150 DIAS
B9: ITEM | C9: DISCRIMINAÇÃO | D9: REFER. | E9: UNID. | F9: QUANT. | G9: P. UNITÁRIO | H9: P.UNIT.C/ BDI | I9: P. TOTAL
A10: A | B10: 1 | C10: SERVIÇOS PRELIMINARES | I10: =SUM(I11:I16) -> 217707.91
A11: 0 | B11: 1.1 | C11: MOBILIZAÇÃO E DESMOBILIZAÇÃO | D11: CPU.1 | E11: GL | F11: 1 | G11: =VLOOKUP(A11,CPU!$A$1:$N$3306,9) -> 5497.44 | H11: =VLOOKUP(A11,CPU!$A$1:$N$3306,10) -> 6928.423632 | I11: =ROUND(F11*H11,2) -> 6928.42
A12: 1 | B12: 1.2 | C12: ADMINISTRAÇÃO LOCAL E MANUTENÇÃO DO CANTEIRO DE OBRAS | D12: CPU.2 | E12: GL | F12: 1 | G12: =VLOOKUP(A12,CPU!$A$1:$N$3306,9) -> 118608.75 | H12: =VLOOKUP(A12,CPU!$A$1:$N$3306,10) -> 149482.6076 | I12: =ROUND(F12*H12,2) -> 149482.61
A13: 2 | B13: 1.3 | C13: LIMPEZA MECANIZADA DE CAMADA VEGETAL, VEGETAÇÃO E PEQUENAS ÁRVORES (DIÂMETRO DE TRONCO MENOR QUE 0,20 M) | D13: 98525 | E13: M2 | F13: 4000 | G13: =VLOOKUP(A13,CPU!$A$1:$N$3306,9) -> 0.41 | H13: =VLOOKUP(A13,CPU!$A$1:$N$3306,10) -> 0.516723 | I13: =ROUND(F13*H13,2) -> 2066.89
A14: 3 | B14: 1.4 | C14: INSTALAÇÕES E CANTEIRO DE OBRAS | D14: CPU.3 | E14: GL | F14: 1 | G14: =VLOOKUP(A14,CPU!$A$1:$N$3306,9) -> 31394.1 | H14: =VLOOKUP(A14,CPU!$A$1:$N$3306,10) -> 39565.98423 | I14: =ROUND(F14*H14,2) -> 39565.98
A15: 4 | B15: 1.5 | C15: PLACA DE OBRA EM CHAPA DE AÇO GALVANIZADO | D15: 103689 | E15: M2 | F15: 4 | G15: =VLOOKUP(A15,CPU!$A$1:$N$3306,9) -> 367.02 | H15: =VLOOKUP(A15,CPU!$A$1:$N$3306,10) -> 462.555306 | I15: =ROUND(F15*H15,2) -> 1850.22
A16: 5 | B16: 1.6 | C16: MOBILIZAÇÃO E DESMOBILIZAÇÃO DE GUINDASTE HIDRÁULICO AUTOPROPELIDO, COM LANÇA TELESCÓPICA | D16: CPU.4 | E16: M | F16: 1 | G16: =VLOOKUP(A16,CPU!$A$1:$N$3306,9) -> 14134.56 | H16: =VLOOKUP(A16,CPU!$A$1:$N$3306,10) -> 17813.78597 | I16: =ROUND(F16*H16,2) -> 17813.79
A17: D | B17: 2 | C17: SUPERESTRUTURA E LAJES DE APROXIMAÇÃO | I17: =SUM(I18:I37) -> 1239986.61
A18: 13 | B18: 2.1 | C18: TRANSPORTE COM CAMINHÃO CARROCERIA 9T, EM VIA URBANA PAVIMENTADA (MAT. DIVERSOS - AÇO, MADEIRA, CIMENTO) | D18: 100948 | E18: TXKM | F18: 60000.00024 | G18: =VLOOKUP(A18,CPU!$A$1:$N$3306,9) -> 0.88 | H18: =VLOOKUP(A18,CPU!$A$1:$N$3306,10) -> 1.109064 | I18: =ROUND(F18*H18,2) -> 66543.84
A19: 14 | B19: 2.2 | C19: TRANSPORTE COM CAMINHÃO CARROCERIA 9T, EM VIA URBANA EM REVESTIMENTO PRIMÁRIO (MAT. DIVERSOS - AÇO, MADEIRA, CIMENTO) | D19: 100945 | E19: TXKM | F19: 2399.998941 | G19: =VLOOKUP(A19,CPU!$A$1:$N$3306,9) -> 2.8 | H19: =VLOOKUP(A19,CPU!$A$1:$N$3306,10) -> 3.52884 | I19: =ROUND(F19*H19,2) -> 8469.21
A20: 15 | B20: 2.3 | C20: TRANSPORTE COM CAMINHÃO BASCULANTE OU BETONEIRA, EM VIA URBANA PAVIMENTADA (MAT. DIVERSOS - CONCRETO, AREIA, BRITA, SOLO, ENTULHO) | D20: 93590 | E20: M3XKM | F20: 29999.99604 | G20: =VLOOKUP(A20,CPU!$A$1:$N$3306,9) -> 0.97 | H20: =VLOOKUP(A20,CPU!$A$1:$N$3306,10) -> 1.222491 | I20: =ROUND(F20*H20,2) -> 36674.73
A21: 16 | B21: 2.4 | C21: TRANSPORTE COM CAMINHÃO BASCULANTE OU BETONEIRA, EM VIA URBANA EM REVESTIMENTO PRIMÁRIO (MAT. DIVERSOS - CONCRETO, AREIA, BRITA, SOLO, ENTULHO) | D21: 93589 | E21: M3XKM | F21: 1500.00312 | G21: =VLOOKUP(A21,CPU!$A$1:$N$3306,9) -> 2.67 | H21: =VLOOKUP(A21,CPU!$A$1:$N$3306,10) -> 3.365001 | I21: =ROUND(F21*H21,2) -> 5047.51
A22: 19 | B22: 2.5 | C22: ARMAÇÃO DE PILAR OU VIGA DE UMA ESTRUTURA CONVENCIONAL DE CONCRETO ARMADO UTILIZANDO AÇO CA-60 DE 5,0 MM | D22: 92775 | E22: KG | F22: 210 | G22: =VLOOKUP(A22,CPU!$A$1:$N$3306,9) -> 17.03 | H22: =VLOOKUP(A22,CPU!$A$1:$N$3306,10) -> 21.462909 | I22: =ROUND(F22*H22,2) -> 4507.21
A23: 20 | B23: 2.6 | C23: ARMAÇÃO DE PILAR OU VIGA DE UMA ESTRUTURA CONVENCIONAL DE CONCRETO ARMADO UTILIZANDO AÇO CA-50 DE 6,3 MM | D23: 92776 | E23: KG | F23: 2400 | G23: =VLOOKUP(A23,CPU!$A$1:$N$3306,9) -> 15.4 | H23: =VLOOKUP(A23,CPU!$A$1:$N$3306,10) -> 19.40862 | I23: =ROUND(F23*H23,2) -> 46580.69
A24: 21 | B24: 2.7 | C24: ARMAÇÃO DE PILAR OU VIGA DE UMA ESTRUTURA CONVENCIONAL DE CONCRETO ARMADO UTILIZANDO AÇO CA-50 DE 8 MM | D24: 92777 | E24: KG | F24: 180 | G24: =VLOOKUP(A24,CPU!$A$1:$N$3306,9) -> 13.93 | H24: =VLOOKUP(A24,CPU!$A$1:$N$3306,10) -> 17.555979 | I24: 3160.08
A25: 22 | B25: 2.8 | C25: ARMAÇÃO DE PILAR OU VIGA DE UMA ESTRUTURA CONVENCIONAL DE CONCRETO ARMADO UTILIZANDO AÇO CA-50 DE 10 MM | D25: 92778 | E25: KG | F25: 4200 | G25: =VLOOKUP(A25,CPU!$A$1:$N$3306,9) -> 12.17 | H25: =VLOOKUP(A25,CPU!$A$1:$N$3306,10) -> 15.337851 | I25: 64418.97
A26: 23 | B26: 2.9 | C26: ARMAÇÃO DE PILAR OU VIGA DE UMA ESTRUTURA CONVENCIONAL DE CONCRETO ARMADO UTILIZANDO AÇO CA-50 DE 12,5 MM | D26: 92779 | E26: KG | F26: 300 | G26: =VLOOKUP(A26,CPU!$A$1:$N$3306,9) -> 10.14 | H26: =VLOOKUP(A26,CPU!$A$1:$N$3306,10) -> 12.779442 | I26: 3833.83
A27: 24 | B27: 2.10 | C27: ARMAÇÃO DE PILAR OU VIGA DE UMA ESTRUTURA CONVENCIONAL DE CONCRETO ARMADO UTILIZANDO AÇO CA-50 DE 16 MM | D27: 92780 | E27: KG | F27: 1200 | G27: =VLOOKUP(A27,CPU!$A$1:$N$3306,9) -> 9.33 | H27: =VLOOKUP(A27,CPU!$A$1:$N$3306,10) -> 11.758599 | I27: 14110.32
A28: 25 | B28: 2.11 | C28: ARMAÇÃO DE PILAR OU VIGA DE UMA ESTRUTURA CONVENCIONAL DE CONCRETO ARMADO UTILIZANDO AÇO CA-50 DE 20 MM | D28: 92781 | E28: KG | F28: 2000 | G28: =VLOOKUP(A28,CPU!$A$1:$N$3306,9) -> 10.11 | H28: =VLOOKUP(A28,CPU!$A$1:$N$3306,10) -> 12.741633 | I28: 25483.27
A29: 26 | B29: 2.12 | C29: ARMAÇÃO DE PILAR OU VIGA DE UMA ESTRUTURA CONVENCIONAL DE CONCRETO ARMADO UTILIZANDO AÇO CA-50 DE 25 MM | D29: 92782 | E29: KG | F29: 2400 | G29: =VLOOKUP(A29,CPU!$A$1:$N$3306,9) -> 10.26 | H29: =VLOOKUP(A29,CPU!$A$1:$N$3306,10) -> 12.930678 | I29: 31033.63
A30: 27 | B30: 2.13 | C30: FABRICAÇÃO DE FÔRMA PARA PILARES E VIGAS, EM CHAPA DE MADEIRA COMPENSADA RESINADA, E = 17 MM | D30: 92263 | E30: M2 | F30: 680 | G30: =VLOOKUP(A30,CPU!$A$1:$N$3306,9) -> 162.91 | H30: =VLOOKUP(A30,CPU!$A$1:$N$3306,10) -> 205.315473 | I30: =ROUND(F30*H30,2) -> 139614.52
A31: 28 | B31: 2.14 | C31: MONTAGEM E DESMONTAGEM DE FÔRMA DE PILARES RETANGULARES E VIGAS, EM CHAPA DE MADEIRA COMPENSADA PLASTIFICADA, 10 UTILIZAÇÕES | D31: 92431 | E31: M2 | F31: 680 | G31: =VLOOKUP(A31,CPU!$A$1:$N$3306,9) -> 34.88 | H31: =VLOOKUP(A31,CPU!$A$1:$N$3306,10) -> 43.959264 | I31: 29892.3
A32: 29 | B32: 2.15 | C32: FABRICAÇÃO DE FÔRMA PARA LAJES, EM CHAPA DE MADEIRA COMPENSADA RESINADA, E = 17 MM | D32: 92267 | E32: M2 | F32: 250 | G32: =VLOOKUP(A32,CPU!$A$1:$N$3306,9) -> 50.36 | H32: =VLOOKUP(A32,CPU!$A$1:$N$3306,10) -> 63.468708 | I32: =ROUND(F32*H32,2) -> 15867.18
A33: 30 | B33: 2.16 | C33: MONTAGEM E DESMONTAGEM DE FÔRMA DE LAJE MACIÇA, EM CHAPA DE MADEIRA COMPENSADA RESINADA, 2 UTILIZAÇÕES | D33: 92508 | E33: M2 | F33: 250 | G33: =VLOOKUP(A33,CPU!$A$1:$N$3306,9) -> 48.89 | H33: =VLOOKUP(A33,CPU!$A$1:$N$3306,10) -> 61.616067 | I33: 15404.02
A34: 31 | B34: 2.17 | C34: ESCORAMENTO DE FÔRMAS DE VIGAS E LAJES COM ESTRUTURA METÁLICA EM TORRE OU TRELIÇA, ALTURA ATÉ 18 METROS, INCLUSO MONTAGEM, TRAVAMENTO E DESMONTAGEM | D34: 101792a | E34: M3 | F34: 3000 | G34: =VLOOKUP(A34,CPU!$A$1:$N$3306,9) -> 138.2 | H34: =VLOOKUP(A34,CPU!$A$1:$N$3306,10) -> 174.17346 | I34: =ROUND(F34*H34,2) -> 522520.38
A35: 34 | B35: 2.18 | C35: POLIESTIRENO EXPANDIDO (EPS - ISOPOR), TIPO 2F, BLOCO - FORNECIMENTO E COLOCAÇÃO | D35: CPU.5 | E35: M3 | F35: 79.996 | G35: =VLOOKUP(A35,CPU!$A$1:$N$3306,9) -> 323.94 | H35: =VLOOKUP(A35,CPU!$A$1:$N$3306,10) -> 408.261582 | I35: =ROUND(F35*H35,2) -> 32659.29
A36: 33 | B36: 2.19 | C36: CONCRETAGEM DE ESTRUTURAS (VIGAS E LAJES) COM CONCRETO USINADO BOMBEÁVEL FCK 30 MPA - LANÇAMENTO, ADENSAMENTO E ACABAMENTO | D36: 103684.a | E36: M3 | F36: 139.996 | G36: =VLOOKUP(A36,CPU!$A$1:$N$3306,9) -> 753.42 | H36: =VLOOKUP(A36,CPU!$A$1:$N$3306,10) -> 949.535226 | I36: 132931.13
A37: 35 | B37: 2.20 | C37: APARELHO DE APOIO EM NEOPRENE FRETADO, COM FRETAGEM DE AÇO 4MM INTERCALADAS COM ELASTÔMERO DE 11MM E REVESTIMENTO FINAL COM ELASTÔMERO DE 6MM | D37: CPU.6 | E37: DM3 | F37: 300 | G37: =VLOOKUP(A37,CPU!$A$1:$N$3306,9) -> 109.06 | H37: =VLOOKUP(A37,CPU!$A$1:$N$3306,10) -> 137.448318 | I37: =ROUND(F37*H37,2) -> 41234.5
A38: E | B38: 3 | C38: SERVIÇOS DIVERSOS - PAVIMENTAÇÃO, LIMPEZA FINAL E SINALIZAÇÃO | I38: =SUM(I39:I50) -> 367525.11
A39: 36 | B39: 3.1 | C39: TRATAMENTO DE JUNTA DE DILATAÇÃO COM MANTA ASFÁLTICA ADERIDA COM MAÇARICO | D39: 98576 | E39: M | F39: 10 | G39: =VLOOKUP(A39,CPU!$A$1:$N$3306,9) -> 20.46 | H39: =VLOOKUP(A39,CPU!$A$1:$N$3306,10) -> 25.785738 | I39: =ROUND(F39*H39,2) -> 257.86
A40: 37 | B40: 3.2 | C40: EXECUÇÃO DE PINTURA DE LIGAÇÃO COM EMULSÃO ASFÁLTICA RR-2C | D40: 96402 | E40: M2 | F40: 300 | G40: =VLOOKUP(A40,CPU!$A$1:$N$3306,9) -> 2.48 | H40: =VLOOKUP(A40,CPU!$A$1:$N$3306,10) -> 3.125544 | I40: =ROUND(F40*H40,2) -> 937.66
A41: 38 | B41: 3.3 | C41: EXECUÇÃO DE PAVIMENTO COM APLICAÇÃO DE CONCRETO ASFÁLTICO, CAMADA DE ROLAMENTO - EXCLUSIVE CARGA E TRANSPORTE | D41: 95995 | E41: M3 | F41: 9 | G41: =VLOOKUP(A41,CPU!$A$1:$N$3306,9) -> 1855.72 | H41: =VLOOKUP(A41,CPU!$A$1:$N$3306,10) -> 2338.763916 | I41: =ROUND(F41*H41,2) -> 21048.88
A42: 39 | B42: 3.4 | C42: TRANSPORTE DE MATERIAL ASFÁLTICO EM VIA URBANA EM REVESTIMENTO PRIMÁRIO | D42: 100965 | E42: TXKM | F42: 120.001 | G42: =VLOOKUP(A42,CPU!$A$1:$N$3306,9) -> 1.53 | H42: =VLOOKUP(A42,CPU!$A$1:$N$3306,10) -> 1.928259 | I42: 231.39
A43: 40 | B43: 3.5 | C43: TRANSPORTE DE MATERIAL ASFÁLTICO EM VIA URBANA PAVIMENTADA | D43: 102330 | E43: TXKM | F43: 5200.004 | G43: =VLOOKUP(A43,CPU!$A$1:$N$3306,9) -> 1.42 | H43: =VLOOKUP(A43,CPU!$A$1:$N$3306,10) -> 1.789626 | I43: 9306.06
A44: 41 | B44: 3.6 | C44: PINTURA DE EIXO VIÁRIO SOBRE ASFALTO COM TINTA RETRORREFLETIVA A BASE DE RESINA ACRÍLICA COM MICROESFERAS DE VIDRO, APLICAÇÃO MECÂNICA COM DEMARCADORA AUTOPROPELIDA | D44: 102512 | E44: M | F44: 36 | G44: =VLOOKUP(A44,CPU!$A$1:$N$3306,9) -> 5.84 | H44: =VLOOKUP(A44,CPU!$A$1:$N$3306,10) -> 7.360152 | I44: 264.97
A45: 42 | B45: 3.7 | C45: PLACA DE AÇO CARBONO COM PELÍCULA REFLETIVA GRAU TÉCNICO TIPO I DA ABNT - PLACA CIRCULAR, INCLUSIVE POSTE DE SUSTENTAÇÃO - FORNECIMENTO E INSTALAÇÃO | D45: RO-41841 | E45: M2 | F45: 3.5044 | G45: =VLOOKUP(A45,CPU!$A$1:$N$3306,9) -> 835.47 | H45: =VLOOKUP(A45,CPU!$A$1:$N$3306,10) -> 1052.942841 | I45: =ROUND(F45*H45,2) -> 3689.93
A46: 43 | B46: 3.8 | C46: PLACA DE AÇO CARBONO COM PELÍCULA REFLETIVA GRAU TÉCNICO TIPO I DA ABNT - PLACA QUADRADA, INCLUSIVE POSTE DE SUSTENTAÇÃO - FORNECIMENTO E INSTALAÇÃO | D46: RO-41842 | E46: M2 | F46: 6 | G46: =VLOOKUP(A46,CPU!$A$1:$N$3306,9) -> 803.57 | H46: =VLOOKUP(A46,CPU!$A$1:$N$3306,10) -> 1012.739271 | I46: 6076.44
A47: 44 | B47: 3.9 | C47: CARGA, MANOBRA E DESCARGA DE SOLOS E MATERIAIS EM GERAL (ENTULHO) EM CAMINHÃO BASCULANTE | D47: 100984 | E47: M3 | F47: 5600 | G47: =VLOOKUP(A47,CPU!$A$1:$N$3306,9) -> 9.05 | H47: =VLOOKUP(A47,CPU!$A$1:$N$3306,10) -> 11.405715 | I47: 63872
A48: 45 | B48: 3.10 | C48: EXECUÇÃO E COMPACTAÇÃO DE ATERRO COM SOLO PREDOMINANTEMENTE ARGILOSO - EXCLUSIVE SOLO, CARGA E TRANSPORTE (ENCABEÇAMENTO) | D48: 96385 | E48: M3 | F48: 5000 | G48: =VLOOKUP(A48,CPU!$A$1:$N$3306,9) -> 11.94 | H48: =VLOOKUP(A48,CPU!$A$1:$N$3306,10) -> 15.047982 | I48: =ROUND(F48*H48,2) -> 75239.91
A49: 15 | B49: 3.11 | C49: TRANSPORTE COM CAMINHÃO BASCULANTE DE 10 M³, EM VIA URBANA PAVIMENTADA (MAT. DIVERSOS - AREIA, BRITA, SOLO, ENTULHO) | D49: 93590 | E49: M3XKM | F49: 4000 | G49: =VLOOKUP(A49,CPU!$A$1:$N$3306,9) -> 0.97 | H49: =VLOOKUP(A49,CPU!$A$1:$N$3306,10) -> 1.222491 | I49: 4889.96
A50: 16 | B50: 3.12 | C50: TRANSPORTE COM CAMINHÃO BASCULANTE DE 10 M³, EM VIA URBANA EM LEITO NATURAL (MAT. DIVERSOS - AREIA, BRITA, SOLO, ENTULHO) | D50: 93589 | E50: M3XKM | F50: 54000 | G50: =VLOOKUP(A50,CPU!$A$1:$N$3306,9) -> 2.67 | H50: =VLOOKUP(A50,CPU!$A$1:$N$3306,10) -> 3.365001 | I50: 181710.05
B51: TOTAL GERAL DA OBRA COM BDI | I51: =SUM(I10,I17,I38) -> 1825219.63

Sheet CPU
A1: 0 | B1: CODEVASF | E1: COMPOSIÇÃO DE PREÇO UNITÁRIO | I1: =H11 -> 5497.44 | J1: =H13 -> 6928.423632 | K1: BDI CALCULADO: | M1: =ORÇAMENTO!I7 -> 0.2603
B2: OBRA: | C2: =ORÇAMENTO!C5 -> CONSTRUÇÃO DE PONTE SOBRE O RIO SÃO DOMINGOS (CONTINUAÇÃO) | G2: DATA: | H2: =ORÇAMENTO!C7 -> NOVEMBRO / 2023
B3: SERVIÇO: | C3: =VLOOKUP(A1,ORÇAMENTO!A11:I40,3) -> MOBILIZAÇÃO E DESMOBILIZAÇÃO | E3: Referência: | F3: =VLOOKUP(A1,ORÇAMENTO!A11:I40,4) -> CPU.1 | G3: UNIDADE: | H3: =VLOOKUP(A1,ORÇAMENTO!A11:I40,5) -> GL | I3: OK
B5: TIPO ITEM | C5: CODIGO ITEM | D5: DESCRIÇÃO ITEM | E5: UNIDADE ITEM | F5: COEFICIENTE | G5: PRECO UNITARIO | H5: CUSTO TOTAL
B6: COMPOSICAO | C6: 73467 | D6: CAMINHÃO TOCO, PBT 14.300 KG, CARGA ÚTIL MÁX. 9.710 KG, DIST. ENTRE EIXOS 3,56 M, POTÊNCIA 185 CV, INCLUSIVE CARROCERIA FIXA ABERTA DE MADEIRA P/ TRANSPORTE GERAL DE CARGA SECA, DIMEN. APROX. 2,50 X 6,50 X 0,50M | E6: CHP | F6: 16 | G6: 246.72 | H6: =ROUNDDOWN(F6*G6,2) -> 3947.52
B7: COMPOSICAO | C7: 91395 | D7: CAMINHÃO TOCO, PBT 14.300 KG, CARGA ÚTIL MÁX. 9.710 KG, DIST. ENTRE EIXOS 3,56 M, POTÊNCIA 185 CV, INCLUSIVE CARROCERIA FIXA ABERTA DE MADEIRA P/ TRANSPORTE GERAL DE CARGA SECA, DIMEN. APROX. 2,50 X 6,50 X 0,50M | E7: CHI | F7: 16 | G7: 57.35 | H7: =ROUNDDOWN(F7*G7,2) -> 917.6
B8: COMPOSIÇÃO | C8: 88316 | D8: SERVENTE COM ENCARGOS COMPLEMENTARES | E8: H | F8: 32 | G8: 19.76 | H8: 632.32
H9: 0
B10: PRODUÇÃO DA EQUIPE | E10: 1 | F10: CUSTO | H10: =SUM(H6:H9) -> 5497.44
B11: TOTAL | H11: =H10/E10 -> 5497.44 | I11: ok
B12: BDI % | H12: =1+$M$1 -> 1.2603
B13: TOTAL DO SERVIÇO - R$ | H13: =H11*H12 -> 6928.423632
A15: =A1+1 -> 1 | B15: CODEVASF | E15: COMPOSIÇÃO DE PREÇO UNITÁRIO | I15: =H29 -> 118608.75 | J15: =H31 -> 149482.6076
B16: OBRA: | C16: =$C$2 -> CONSTRUÇÃO DE PONTE SOBRE O RIO SÃO DOMINGOS (CONTINUAÇÃO) | G16: DATA: | H16: =$H$2 -> NOVEMBRO / 2023
B17: SERVIÇO: | C17: =VLOOKUP(A15,ORÇAMENTO!$A$11:$I$40,3) -> ADMINISTRAÇÃO LOCAL E MANUTENÇÃO DO CANTEIRO DE OBRAS | E17: SINAPI | F17: CPU | G17: UNIDADE: | H17: =VLOOKUP(A15,ORÇAMENTO!$A$11:$I$40,5) -> GL | I17: OK
B19: TIPO ITEM | C19: CODIGO ITEM | D19: DESCRIÇÃO ITEM | E19: UNIDADE ITEM | F19: COEFICIENTE | G19: PRECO UNITARIO | H19: CUSTO TOTAL
B20: INSUMO | C20: 3346 | D20: LOCACAO DE GRUPO GERADOR *80 A 125* KVA, MOTOR DIESEL, REBOCAVEL | E20: H | F20: 60 | G20: 18.95 | H20: =ROUNDDOWN(F20*G20,2) -> 1137
B21: COMPOSICAO | C21: 101008 | D21: CARGA DE ÁGUA EM CAMINHÃO PIPA | E21: M3 | F21: 10 | G21: 5.44 | H21: 54.4
B22: COMPOSICAO | C22: 100955 | D22: TRANSPORTE COM CAMINHÃO PIPA, EM VIA URBANA EM LEITO NATURAL | E22: M3XKM | F22: 100 | G22: 4.88 | H22: 488
B23: COTAÇÃO | C23: MERC. | D23: VEÍCULO PARA TRANSPORTE DE PESSOAL, INCLUSIVE COMBUSTÍVEL | E23: VB | F23: 1 | G23: 2100 | H23: 2100
B24: COTAÇÃO | C24: MERC. | D24: TELEFONE (PLANO CONTROLE) | E24: UNID | F24: 2 | G24: 59.9 | H24: 119.8
B25: COMPOSICAO | C25: 90777 | D25: ENGENHEIRO CIVIL DE OBRA COM ENCARGOS COMPLEMENTARES | E25: H | F25: 55 | G25: 114.12 | H25: 6276.6
B26: COMPOSIÇÃO | C26: 100309 | D26: TÉCNICO EM SEGURANÇA DO TRABALHO COM ENCARGOS COMPLEMENTARES | E26: H | F26: 55 | G26: 43.73 | H26: 2405.15
B27: COMPOSICAO | C27: 90776 | D27: ENCARREGADO GERAL COM ENCARGOS COMPLEMENTARES | E27: H | F27: 220 | G27: 50.64 | H27: 11140.8
B28: PRODUÇÃO DA EQUIPE | E28: 0.2 | F28: CUSTO | H28: =SUM(H20:H27) -> 23721.75
B29: TOTAL | H29: =H28/E28 -> 118608.75 | I29: ok
B30: BDI % | H30: =1+$M$1 -> 1.2603
B31: TOTAL DO SERVIÇO - R$ | H31: =H29*H30 -> 149482.6076
A33: 2 | B33: CODEVASF | E33: COMPOSIÇÃO DE PREÇO UNITÁRIO | I33: =H43 -> 0.41 | J33: =H45 -> 0.516723
B34: OBRA: | C34: =$C$2 -> CONSTRUÇÃO DE PONTE SOBRE O RIO SÃO DOMINGOS (CONTINUAÇÃO) | G34: DATA: | H34: =$H$2 -> NOVEMBRO / 2023
B35: SERVIÇO: | C35: =VLOOKUP(A33,ORÇAMENTO!$A$11:$I$40,3) -> LIMPEZA MECANIZADA DE CAMADA VEGETAL, VEGETAÇÃO E PEQUENAS ÁRVORES (DIÂMETRO DE TRONCO MENOR QUE 0,20 M) | E35: SINAPI | F35: =VLOOKUP(A33,ORÇAMENTO!$A$11:$I$40,4) -> 98525 | G35: UNIDADE: | H35: =VLOOKUP(A33,ORÇAMENTO!$A$11:$I$40,5) -> M2 | I35: OK
B37: TIPO ITEM | C37: CODIGO ITEM | D37: DESCRIÇÃO ITEM | E37: UNIDADE ITEM | F37: COEFICIENTE | G37: PRECO UNITARIO | H37: CUSTO TOTAL
B38: COMPOSICAO | C38: 88316 | D38: SERVENTE COM ENCARGOS COMPLEMENTARES | E38: H | F38: 0,0030000 | G38: 19,76 | H38: =ROUNDDOWN(F38*G38,2) -> 0.05
B39: COMPOSICAO | C39: 88441 | D39: JARDINEIRO COM ENCARGOS COMPLEMENTARES | E39: H | F39: 0,0030000 | G39: 24,24 | H39: 0.07
B40: COMPOSICAO | C40: 89031 | D40: TRATOR DE ESTEIRAS, POTÊNCIA 100 HP, PESO OPERACIONAL 9,4 T, COM LÂMINA 2,19 M3 | E40: CHI | F40: 0,0024000 | G40: 78,04 | H40: 0.18
B41: COMPOSICAO | C41: 89032 | D41: TRATOR DE ESTEIRAS, POTÊNCIA 100 HP, PESO OPERACIONAL 9,4 T, COM LÂMINA 2,19 M3 | E41: CHP | F41: 0,0006000 | G41: 194,17 | H41: 0.11
B42: PRODUÇÃO DA EQUIPE | E42: 1 | F42: CUSTO | H42: =SUM(H38:H41) -> 0.41
B43: TOTAL | H43: =H42/E42 -> 0.41 | I43: ok
B44: BDI % | H44: =1+$M$1 -> 1.2603
B45: TOTAL DO SERVIÇO - R$ | H45: =H43*H44 -> 0.516723
A47: 3 | B47: CODEVASF | E47: COMPOSIÇÃO DE PREÇO UNITÁRIO | I47: =H59 -> 31394.1 | J47: =H61 -> 39565.98423
B48: OBRA: | C48: =$C$2 -> CONSTRUÇÃO DE PONTE SOBRE O RIO SÃO DOMINGOS (CONTINUAÇÃO) | G48: DATA: | H48: =$H$2 -> NOVEMBRO / 2023
B49: SERVIÇO: | C49: =VLOOKUP(A47,ORÇAMENTO!$A$11:$I$40,3) -> INSTALAÇÕES E CANTEIRO DE OBRAS | E49: SINAPI | F49: =VLOOKUP(A47,ORÇAMENTO!$A$11:$I$40,4) -> CPU.3 | G49: UNIDADE: | H49: =VLOOKUP(A47,ORÇAMENTO!$A$11:$I$40,5) -> GL
B51: TIPO ITEM | C51: CODIGO ITEM | D51: DESCRIÇÃO ITEM | E51: UNIDADE ITEM | F51: COEFICIENTE | G51: PRECO UNITARIO | H51: CUSTO TOTAL
B52: INSUMO | C52: 10775 | D52: LOCACAO DE CONTAINER 2,30 X 6,00M, ALT. 2,50 M, COM SANITARIO, PARA ESCRITORIO, COMPLETO, SEM DIVISORIAS INTERNAS | E52: MÊS | F52: 5 | G52: 985 | H52: =ROUNDDOWN(F52*G52,2) -> 4925
B53: INSUMO | C53: 10777 | D53: LOCACAO DE CONTAINER 2,30 X 4,30 M, ALT. 2,50 M, PARA SANITARIO, COM 3 BACIAS, 4 CHUVEIROS, 1 LAVATORIO E 1 MICTORIO | E53: MÊS | F53: 5 | G53: 1118.38 | H53: 5591.9
B54: INSUMO | C54: 37524 | D54: TELA PLASTICA LARANJA, TIPO TAPUME PARA SINALIZACAO, MALHA RETANGULAR | E54: M | F54: 100 | G54: 2.49 | H54: 249
B55: COMPOSICAO | C55: 93210 | D55: EXECUÇÃO DE REFEITÓRIO EM CANTEIRO DE OBRA EM CHAPA DE MADEIRA COMPENSADA | E55: M2 | F55: 20 | G55: 633.56 | H55: 12671.2
B56: COMPOSICAO | C56: 93582 | D56: EXECUÇÃO DE CENTRAL DE ARMADURA EM CANTEIRO DE OBRA | E56: M2 | F56: 10 | G56: 309.06 | H56: 3090.6
B57: COMPOSICAO | C57: 93583 | D57: EXECUÇÃO DE CENTRAL DE FÔRMAS, PRODUÇÃO DE ARGAMASSA OU CONCRETO EM CANTEIRO DE OBRA | E57: M2 | F57: 10 | G57: 486.64 | H57: 4866.4
B58: PRODUÇÃO DA EQUIPE | E58: 1 | F58: CUSTO | H58: =SUM(H52:H57) -> 31394.1
B59: TOTAL | H59: =H58/E58 -> 31394.1 | I59: ok
B60: BDI % | H60: =1+$M$1 -> 1.2603
B61: TOTAL DO SERVIÇO - R$ | H61: =H59*H60 -> 39565.98423
A63: =A47+1 -> 4 | B63: CODEVASF | E63: COMPOSIÇÃO DE PREÇO UNITÁRIO | I63: =H76 -> 367.02 | J63: =H78 -> 462.555306
B64: OBRA: | C64: =$C$2 -> CONSTRUÇÃO DE PONTE SOBRE O RIO SÃO DOMINGOS (CONTINUAÇÃO) | G64: DATA: | H64: =$H$2 -> NOVEMBRO / 2023
B65: SERVIÇO: | C65: =VLOOKUP(A63,ORÇAMENTO!$A$11:$I$40,3) -> PLACA DE OBRA EM CHAPA DE AÇO GALVANIZADO | E65: SINAPI | F65: =VLOOKUP(A63,ORÇAMENTO!$A$11:$I$40,4) -> 103689 | G65: UNIDADE: | H65: =VLOOKUP(A63,ORÇAMENTO!$A$11:$I$40,5) -> M2 | I65: OK
B67: TIPO ITEM | C67: CODIGO ITEM | D67: DESCRIÇÃO ITEM | E67: UNIDADE ITEM | F67: COEFICIENTE | G67: PRECO UNITARIO | H67: CUSTO TOTAL
B68: INSUMO | C68: 4417 | D68: SARRAFO DE MADEIRA NAO APARELHADA *2,5 X 7* CM, MACARANDUBA, ANGELIM OU EQUIVALENTE DA REGIAO | E68: M | F68: 1,0000000 | G68: 4.4 | H68: =ROUNDDOWN(F68*G68,2) -> 4.4
B69: INSUMO | C69: 4491 | D69: PONTALETE DE MADEIRA NAO APARELHADA *7,5 X 7,5* CM (3 X 3 ") PINUS, MISTA OU EQUIVALENTE DA REGIAO | E69: M | F69: 4,0000000 | G69: 8.68 | H69: 34.72
B70: INSUMO | C70: 4813 | D70: PLACA DE OBRA (PARA CONSTRUCAO CIVIL) EM CHAPA GALVANIZADA *N. 22*, ADESIVADA, DE *2,0 X 1,125* M | E70: M2 | F70: 1,0000000 | G70: 250,00 | H70: 250
B71: INSUMO | C71: 5075 | D71: PREGO DE ACO POLIDO COM CABECA 18 X 30 (2 3/4 X 10) | E71: KG | F71: 0,1100000 | G71: 36,57 | H71: 4.02
B72: COMPOSICAO | C72: 88262 | D72: CARPINTEIRO DE FORMAS COM ENCARGOS COMPLEMENTARES | E72: H | F72: 1,0000000 | G72: 19,59 | H72: 19.59
B73: COMPOSICAO | C73: 88316 | D73: SERVENTE COM ENCARGOS COMPLEMENTARES | E73: H | F73: 2,0000000 | G73: 27,05 | H73: 54.1
B74: COMPOSICAO | C74: 94962 | D74: CONCRETO MAGRO PARA LASTRO, TRAÇO 1:4,5:4,5 (CIMENTO/ AREIA MÉDIA/ BRITA 1) - PREPARO MECÂNICO COM BETONEIRA 400 L | E74: M3 | F74: 0,0100000 | G74: 19,76 | H74: 0.19
B75: PRODUÇÃO DA EQUIPE | E75: 1 | F75: CUSTO | H75: =SUM(H68:H74) -> 367.02
B76: TOTAL | H76: =H75/E75 -> 367.02
B77: BDI % | H77: =1+$M$1 -> 1.2603
B78: TOTAL DO SERVIÇO - R$ | H78: =H76*H77 -> 462.555306
A80: =A63+1 -> 5 | B80: CODEVASF | E80: COMPOSIÇÃO DE PREÇO UNITÁRIO | I80: =H92 -> 14134.56 | J80: =H94 -> 17813.78597
B81: OBRA: | C81: =$C$2 -> CONSTRUÇÃO DE PONTE SOBRE O RIO SÃO DOMINGOS (CONTINUAÇÃO) | G81: DATA: | H81: =$H$2 -> NOVEMBRO / 2023
B82: SERVIÇO: | C82: =VLOOKUP(A80,ORÇAMENTO!$A$11:$I$40,3) -> MOBILIZAÇÃO E DESMOBILIZAÇÃO DE GUINDASTE HIDRÁULICO AUTOPROPELIDO, COM LANÇA TELESCÓPICA | E82: SINAPI | F82: =VLOOKUP(A80,ORÇAMENTO!$A$11:$I$40,4) -> CPU.4 | G82: UNIDADE: | H82: VB
B84: TIPO ITEM | C84: CODIGO ITEM | D84: DESCRIÇÃO ITEM | E84: UNIDADE ITEM | F84: COEFICIENTE | G84: PRECO UNITARIO | H84: CUSTO TOTAL
B85: COMPOSICAO | C85: 93287 | D85: GUINDASTE HIDRÁULICO AUTOPROPELIDO, COM LANÇA TELESCÓPICA 40 M, CAPACIDADE MÁXIMA 60 T, POTÊNCIA 260 KW | E85: CHP | F85: =750/60 -> 12.5 | G85: 334,92 | H85: =ROUNDDOWN(F85*G85,2) -> 4186.5
B86: COMPOSICAO | C86: 93288 | D86: GUINDASTE HIDRÁULICO AUTOPROPELIDO, COM LANÇA TELESCÓPICA 40 M, CAPACIDADE MÁXIMA 60 T, POTÊNCIA 260 KW | E86: CHI | F86: 3.5 | G86: 171,30 | H86: 599.55
B87: COMPOSICAO | C87: E9512 | D87: VEÍCULO LEVE - BATEDOR | E87: CHP | F87: =F85*2 -> 25 | G87: 58.4269 | H87: 1460.67
B88: COMPOSICAO | C88: E9512 | D88: VEÍCULO LEVE - BATEDOR | E88: CHI | F88: =F86*2 -> 7 | G88: 31.5096 | H88: =ROUNDDOWN(F88*G88,2) -> 220.56
B89: INSUMO | C89: - | D89: HOSPEDAGEM | E89: DIA | F89: 5 | G89: 120 | H89: 600
H90: =ROUNDDOWN(F90*G90,2) -> 0
B91: PRODUÇÃO DA EQUIPE | E91: 0.5 | F91: CUSTO | H91: =SUM(H85:H90) -> 7067.28
B92: TOTAL | H92: =H91/E91 -> 14134.56 | I92: OK
B93: BDI % | H93: =1+$M$1 -> 1.2603
B94: TOTAL DO SERVIÇO - R$ | H94: =H92*H93 -> 17813.78597
A96: 13 | B96: CODEVASF | E96: COMPOSIÇÃO DE PREÇO UNITÁRIO | I96: =H105 -> 0.88 | J96: =H107 -> 1.109064
B97: OBRA: | C97: =$C$2 -> CONSTRUÇÃO DE PONTE SOBRE O RIO SÃO DOMINGOS (CONTINUAÇÃO) | G97: DATA: | H97: =$H$2 -> NOVEMBRO / 2023
B98: SERVIÇO: | C98: =VLOOKUP(A96,ORÇAMENTO!$A$11:$I$40,3) -> TRANSPORTE COM CAMINHÃO CARROCERIA 9T, EM VIA URBANA PAVIMENTADA (MAT. DIVERSOS - AÇO, MADEIRA, CIMENTO) | E98: SINAPI | F98: =VLOOKUP(A96,ORÇAMENTO!$A$11:$I$40,4) -> 100948 | G98: UNIDADE: | H98: =VLOOKUP(A96,ORÇAMENTO!$A$11:$I$40,5) -> TXKM | I98: OK
B100: TIPO ITEM | C100: CODIGO ITEM | D100: DESCRIÇÃO ITEM | E100: UNIDADE ITEM | F100: COEFICIENTE | G100: PRECO UNITARIO | H100: CUSTO TOTAL
B101: COMPOSICAO | C101: 5824 | D101: CAMINHÃO TOCO, PBT 16.000 KG, CARGA ÚTIL MÁX. 10.685 KG, DIST. ENTRE EIXOS 4,8 M, POTÊNCIA 189 CV, INCLUSIVE CARROCERIA FIXA ABERTA DE MADEIRA P/ TRANSPORTE GERAL DE CARGA SECA | E101: CHP | F101: 0,0037000 | G101: 214,09 | H101: =ROUNDDOWN(F101*G101,2) -> 0.79
B102: COMPOSICAO | C102: 5826 | D102: CAMINHÃO TOCO, PBT 16.000 KG, CARGA ÚTIL MÁX. 10.685 KG, DIST. ENTRE EIXOS 4,8 M, POTÊNCIA 189 CV, INCLUSIVE CARROCERIA FIXA ABERTA DE MADEIRA P/ TRANSPORTE GERAL DE CARGA SECA | E102: CHI | F102: 0,0016000 | G102: 60,10 | H102: 0.09
H103: =ROUNDDOWN(F103*G103,2) -> 0
B104: PRODUÇÃO DA EQUIPE | E104: 1 | F104: CUSTO | H104: =SUM(H101:H103) -> 0.88
B105: TOTAL | H105: =H104/E104 -> 0.88 | I105: OK
B106: BDI % | H106: =1+$M$1 -> 1.2603
B107: TOTAL DO SERVIÇO - R$ | H107: =H105*H106 -> 1.109064
A109: =A96+1 -> 14 | B109: CODEVASF | E109: COMPOSIÇÃO DE PREÇO UNITÁRIO | I109: =H118 -> 2.8 | J109: =H120 -> 3.52884
B110: OBRA: | C110: =$C$2 -> CONSTRUÇÃO DE PONTE SOBRE O RIO SÃO DOMINGOS (CONTINUAÇÃO) | G110: DATA: | H110: =$H$2 -> NOVEMBRO / 2023
B111: SERVIÇO: | C111: =VLOOKUP(A109,ORÇAMENTO!$A$11:$I$40,3) -> TRANSPORTE COM CAMINHÃO CARROCERIA 9T, EM VIA URBANA EM REVESTIMENTO PRIMÁRIO (MAT. DIVERSOS - AÇO, MADEIRA, CIMENTO) | E111: SINAPI | F111: =VLOOKUP(A109,ORÇAMENTO!$A$11:$I$40,4) -> 100945 | G111: UNIDADE: | H111: =VLOOKUP(A109,ORÇAMENTO!$A$11:$I$40,5) -> TXKM | I111: OK
B113: TIPO ITEM | C113: CODIGO ITEM | D113: DESCRIÇÃO ITEM | E113: UNIDADE ITEM | F113: COEFICIENTE | G113: PRECO UNITARIO | H113: CUSTO TOTAL
B114: COMPOSICAO | C114: 5824 | D114: CAMINHÃO TOCO, PBT 16.000 KG, CARGA ÚTIL MÁX. 10.685 KG, DIST. ENTRE EIXOS 4,8 M, POTÊNCIA 189 CV, INCLUSIVE CARROCERIA FIXA ABERTA DE MADEIRA P/ TRANSPORTE GERAL DE CARGA SECA | E114: CHP | F114: 0,0117000 | G114: 214,09 | H114: =ROUNDDOWN(F114*G114,2) -> 2.5
B115: COMPOSICAO | C115: 5826 | D115: CAMINHÃO TOCO, PBT 16.000 KG, CARGA ÚTIL MÁX. 10.685 KG, DIST. ENTRE EIXOS 4,8 M, POTÊNCIA 189 CV, INCLUSIVE CARROCERIA FIXA ABERTA DE MADEIRA P/ TRANSPORTE GERAL DE CARGA SECA | E115: CHI | F115: 0,0050000 | G115: 60,10 | H115: 0.3
H116: 0
B117: PRODUÇÃO DA EQUIPE | E117: 1 | F117: CUSTO | H117: =SUM(H114:H116) -> 2.8
B118: TOTAL | H118: =H117/E117 -> 2.8 | I118: OK
B119: BDI % | H119: =1+$M$1 -> 1.2603
B120: TOTAL DO SERVIÇO - R$ | H120: =H118*H119 -> 3.52884
A122: =A109+1 -> 15 | B122: CODEVASF | E122: COMPOSIÇÃO DE PREÇO UNITÁRIO | I122: =H131 -> 0.97 | J122: =H133 -> 1.222491
B123: OBRA: | C123: =$C$2 -> CONSTRUÇÃO DE PONTE SOBRE O RIO SÃO DOMINGOS (CONTINUAÇÃO) | G123: DATA: | H123: =$H$2 -> NOVEMBRO / 2023
B124: SERVIÇO: | C124: =VLOOKUP(A122,ORÇAMENTO!$A$11:$I$40,3) -> TRANSPORTE COM CAMINHÃO BASCULANTE OU BETONEIRA, EM VIA URBANA PAVIMENTADA (MAT. DIVERSOS - CONCRETO, AREIA, BRITA, SOLO, ENTULHO) | E124: SINAPI | F124: =VLOOKUP(A122,ORÇAMENTO!$A$11:$I$40,4) -> 93590 | G124: UNIDADE: | H124: =VLOOKUP(A122,ORÇAMENTO!$A$11:$I$40,5) -> M3XKM | I124: OK
B126: TIPO ITEM | C126: CODIGO ITEM | D126: DESCRIÇÃO ITEM | E126: UNIDADE ITEM | F126: COEFICIENTE | G126: PRECO UNITARIO | H126: CUSTO TOTAL
B127: COMPOSICAO | C127: 91386 | D127: CAMINHÃO BASCULANTE 10 M3, TRUCADO CABINE SIMPLES, PESO BRUTO TOTAL 23.000 KG, CARGA ÚTIL MÁXIMA 15.935 KG, DISTÂNCIA ENTRE EIXOS 4,80 M, POTÊNCIA 230 CV INCLUSIVE CAÇAMBA METÁLICA | E127: CHP | F127: 0,0033000 | G127: 265,97 | H127: =ROUNDDOWN(F127*G127,2) -> 0.87
B128: COMPOSICAO | C128: 91387 | D128: CAMINHÃO BASCULANTE 10 M3, TRUCADO CABINE SIMPLES, PESO BRUTO TOTAL 23.000 KG, CARGA ÚTIL MÁXIMA 15.935 KG, DISTÂNCIA ENTRE EIXOS 4,80 M, POTÊNCIA 230 CV INCLUSIVE CAÇAMBA METÁLICA | E128: CHI | F128: 0,0014000 | G128: 72,77 | H128: 0.1
H129: 0
B130: PRODUÇÃO DA EQUIPE | E130: 1 | F130: CUSTO | H130: =SUM(H127:H129) -> 0.97
B131: TOTAL | H131: =H130/E130 -> 0.97 | I131: OK
B132: BDI % | H132: =1+$M$1 -> 1.2603
B133: TOTAL DO SERVIÇO - R$ | H133: =H131*H132 -> 1.222491
A135: =A122+1 -> 16 | B135: CODEVASF | E135: COMPOSIÇÃO DE PREÇO UNITÁRIO | I135: =H144 -> 2.67 | J135: =H146 -> 3.365001
B136: OBRA: | C136: =$C$2 -> CONSTRUÇÃO DE PONTE SOBRE O RIO SÃO DOMINGOS (CONTINUAÇÃO) | G136: DATA: | H136: =$H$2 -> NOVEMBRO / 2023
B137: SERVIÇO: | C137: =VLOOKUP(A135,ORÇAMENTO!$A$11:$I$40,3) -> TRANSPORTE COM CAMINHÃO BASCULANTE OU BETONEIRA, EM VIA URBANA EM REVESTIMENTO PRIMÁRIO (MAT. DIVERSOS - CONCRETO, AREIA, BRITA, SOLO, ENTULHO) | E137: SINAPI | F137: =VLOOKUP(A135,ORÇAMENTO!$A$11:$I$40,4) -> 93589 | G137: UNIDADE: | H137: =VLOOKUP(A135,ORÇAMENTO!$A$11:$I$40,5) -> M3XKM | I137: OK
B139: TIPO ITEM | C139: CODIGO ITEM | D139: DESCRIÇÃO ITEM | E139: UNIDADE ITEM | F139: COEFICIENTE | G139: PRECO UNITARIO | H139: CUSTO TOTAL
B140: COMPOSICAO | C140: 91386 | D140: CAMINHÃO BASCULANTE 10 M3, TRUCADO CABINE SIMPLES, PESO BRUTO TOTAL 23.000 KG, CARGA ÚTIL MÁXIMA 15.935 KG, DISTÂNCIA ENTRE EIXOS 4,80 M, POTÊNCIA 230 CV INCLUSIVE CAÇAMBA METÁLICA | E140: CHP | F140: 0,0090000 | G140: 265,97 | H140: =ROUNDDOWN(F140*G140,2) -> 2.39
B141: COMPOSICAO | C141: 91387 | D141: CAMINHÃO BASCULANTE 10 M3, TRUCADO CABINE SIMPLES, PESO BRUTO TOTAL 23.000 KG, CARGA ÚTIL MÁXIMA 15.935 KG, DISTÂNCIA ENTRE EIXOS 4,80 M, POTÊNCIA 230 CV INCLUSIVE CAÇAMBA METÁLICA | E141: CHI | F141: 0,0039000 | G141: 72,77 | H141: 0.28
H142: 0
B143: PRODUÇÃO DA EQUIPE | E143: 1 | F143: CUSTO | H143: =SUM(H140:H142) -> 2.67
B144: TOTAL | H144: =H143/E143 -> 2.67 | I144: OK
B145: BDI % | H145: =1+$M$1 -> 1.2603
B146: TOTAL DO SERVIÇO - R$ | H146: =H144*H145 -> 3.365001
A148: 19 | B148: CODEVASF | E148: COMPOSIÇÃO DE PREÇO UNITÁRIO | I148: =H159 -> 17.03 | J148: =H161 -> 21.462909
B149: OBRA: | C149: =$C$2 -> CONSTRUÇÃO DE PONTE SOBRE O RIO SÃO DOMINGOS (CONTINUAÇÃO) | G149: DATA: | H149: =$H$2 -> NOVEMBRO / 2023
B150: SERVIÇO: | C150: =VLOOKUP(A148,ORÇAMENTO!$A$11:$I$40,3) -> ARMAÇÃO DE PILAR OU VIGA DE UMA ESTRUTURA CONVENCIONAL DE CONCRETO ARMADO UTILIZANDO AÇO CA-60 DE 5,0 MM | E150: SINAPI | F150: =VLOOKUP(A148,ORÇAMENTO!$A$11:$I$40,4) -> 92775 | G150: UNIDADE: | H150: =VLOOKUP(A148,ORÇAMENTO!$A$11:$I$40,5) -> KG | I150: OK
B152: TIPO ITEM | C152: CODIGO ITEM | D152: DESCRIÇÃO ITEM | E152: UNIDADE ITEM | F152: COEFICIENTE | G152: PRECO UNITARIO | H152: CUSTO TOTAL
B153: INSUMO | C153: 39017 | D153: ESPACADOR / DISTANCIADOR CIRCULAR COM ENTRADA LATERAL, EM PLASTICO, PARA VERGALHAO *4,2 A 12,5* MM, COBRIMENTO 20 MM | E153: UN | F153: 1,1900000 | G153: 0,20 | H153: =ROUNDDOWN(F153*G153,2) -> 0.23
B154: INSUMO | C154: 43132 | D154: ARAME RECOZIDO 16 BWG, D = 1,65 MM (0,016 KG/M) OU 18 BWG, D = 1,25 MM (0,01 KG/M) | E154: KG | F154: 0,0250000 | G154: 25,40 | H154: 0.63
B155: COMPOSICAO | C155: 88238 | D155: AJUDANTE DE ARMADOR COM ENCARGOS COMPLEMENTARES | E155: H | F155: 0,0367000 | G155: 20,18 | H155: 0.74
B156: COMPOSICAO | C156: 88245 | D156: ARMADOR COM ENCARGOS COMPLEMENTARES | E156: H | F156: 0,2245000 | G156: 27,23 | H156: 6.11
B157: COMPOSICAO | C157: 92800 | D157: CORTE E DOBRA DE AÇO CA-60, DIÂMETRO DE 5,0 MM, UTILIZADO EM ESTRUTURAS DIVERSAS | E157: KG | F157: 1,0000000 | G157: 9.32 | H157: 9.32
B158: PRODUÇÃO DA EQUIPE | E158: 1 | F158: CUSTO | H158: =SUM(H153:H157) -> 17.03
B159: TOTAL | H159: =H158/E158 -> 17.03 | I159: OK
B160: BDI % | H160: =1+$M$1 -> 1.2603
B161: TOTAL DO SERVIÇO - R$ | H161: =H159*H160 -> 21.462909
A163: =A148+1 -> 20 | B163: CODEVASF | E163: COMPOSIÇÃO DE PREÇO UNITÁRIO | I163: =H174 -> 15.4 | J163: =H176 -> 19.40862
B164: OBRA: | C164: =$C$2 -> CONSTRUÇÃO DE PONTE SOBRE O RIO SÃO DOMINGOS (CONTINUAÇÃO) | G164: DATA: | H164: =$H$2 -> NOVEMBRO / 2023
B165: SERVIÇO: | C165: =VLOOKUP(A163,ORÇAMENTO!$A$11:$I$50,3) -> ARMAÇÃO DE PILAR OU VIGA DE UMA ESTRUTURA CONVENCIONAL DE CONCRETO ARMADO UTILIZANDO AÇO CA-50 DE 6,3 MM | E165: SINAPI | F165: =VLOOKUP(A163,ORÇAMENTO!$A$11:$I$50,4) -> 92776 | G165: UNIDADE: | H165: =VLOOKUP(A163,ORÇAMENTO!$A$11:$I$50,5) -> KG | I165: OK
B167: TIPO ITEM | C167: CODIGO ITEM | D167: DESCRIÇÃO ITEM | E167: UNIDADE ITEM | F167: COEFICIENTE | G167: PRECO UNITARIO | H167: CUSTO TOTAL
B168: INSUMO | C168: 39017 | D168: ESPACADOR / DISTANCIADOR CIRCULAR COM ENTRADA LATERAL, EM PLASTICO, PARA VERGALHAO *4,2 A 12,5* MM, COBRIMENTO 20 MM | E168: UN | F168: 0,9700000 | G168: 0,20 | H168: =ROUNDDOWN(F168*G168,2) -> 0.19
B169: INSUMO | C169: 43132 | D169: ARAME RECOZIDO 16 BWG, D = 1,65 MM (0,016 KG/M) OU 18 BWG, D = 1,25 MM (0,01 KG/M) | E169: KG | F169: 0,0250000 | G169: 25,40 | H169: 0.63
B170: COMPOSICAO | C170: 88238 | D170: AJUDANTE DE ARMADOR COM ENCARGOS COMPLEMENTARES | E170: H | F170: 0,0280000 | G170: 20,18 | H170: 0.56
B171: COMPOSICAO | C171: 88245 | D171: ARMADOR COM ENCARGOS COMPLEMENTARES | E171: H | F171: 0,1713000 | G171: 27,23 | H171: 4.66
B172: COMPOSICAO | C172: 92801 | D172: CORTE E DOBRA DE AÇO CA-50, DIÂMETRO DE 6,3 MM, UTILIZADO EM ESTRUTURAS DIVERSAS | E172: KG | F172: 1,0000000 | G172: 9.36 | H172: 9.36
B173: PRODUÇÃO DA EQUIPE | E173: 1 | F173: CUSTO | H173: =SUM(H168:H172) -> 15.4
B174: TOTAL | H174: =H173/E173 -> 15.4 | I174: OK
B175: BDI % | H175: =1+$M$1 -> 1.2603
B176: TOTAL DO SERVIÇO - R$ | H176: =H174*H175 -> 19.40862
A178: 21 | B178: CODEVASF | E178: COMPOSIÇÃO DE PREÇO UNITÁRIO | I178: =H189 -> 13.93 | J178: =H191 -> 17.555979
B179: OBRA: | C179: =$C$2 -> CONSTRUÇÃO DE PONTE SOBRE O RIO SÃO DOMINGOS (CONTINUAÇÃO) | G179: DATA: | H179: =$H$2 -> NOVEMBRO / 2023
B180: SERVIÇO: | C180: =VLOOKUP(A178,ORÇAMENTO!$A$11:$I$40,3) -> ARMAÇÃO DE PILAR OU VIGA DE UMA ESTRUTURA CONVENCIONAL DE CONCRETO ARMADO UTILIZANDO AÇO CA-50 DE 8 MM | E180: SICRO | F180: =VLOOKUP(A178,ORÇAMENTO!$A$11:$I$40,4) -> 92777 | G180: UNIDADE: | H180: =VLOOKUP(A178,ORÇAMENTO!$A$11:$I$40,5) -> KG | I180: OK
B182: TIPO ITEM | C182: CODIGO ITEM | D182: DESCRIÇÃO ITEM | E182: UNIDADE ITEM | F182: COEFICIENTE | G182: PRECO UNITARIO | H182: CUSTO TOTAL
B183: INSUMO | C183: 39017 | D183: ESPACADOR / DISTANCIADOR CIRCULAR COM ENTRADA LATERAL, EM PLASTICO, PARA VERGALHAO *4,2 A 12,5* MM, COBRIMENTO 20 MM | E183: UN | F183: 0,7430000 | G183: 0,20 | H183: =ROUNDDOWN(F183*G183,2) -> 0.14
B184: INSUMO | C184: 43132 | D184: ARAME RECOZIDO 16 BWG, D = 1,65 MM (0,016 KG/M) OU 18 BWG, D = 1,25 MM (0,01 KG/M) | E184: KG | F184: 0,0250000 | G184: 25,40 | H184: 0.63
B185: COMPOSICAO | C185: 88238 | D185: AJUDANTE DE ARMADOR COM ENCARGOS COMPLEMENTARES | E185: H | F185: 0,0209000 | G185: 20,18 | H185: 0.42
B186: COMPOSICAO | C186: 88245 | D186: ARMADOR COM ENCARGOS COMPLEMENTARES | E186: H | F186: 0,1278000 | G186: 27,23 | H186: 3.47
B187: COMPOSICAO | C187: 92802 | D187: CORTE E DOBRA DE AÇO CA-50, DIÂMETRO DE 8,0 MM, UTILIZADO EM ESTRUTURAS DIVERSAS | E187: KG | F187: 1,0000000 | G187: 9.27 | H187: 9.27
B188: PRODUÇÃO DA EQUIPE | E188: 1 | F188: CUSTO | H188: =SUM(H183:H187) -> 13.93
B189: TOTAL | H189: =H188/E188 -> 13.93 | I189: OK
B190: BDI % | H190: =1+$M$1 -> 1.2603
B191: TOTAL DO SERVIÇO - R$ | H191: =H189*H190 -> 17.555979
A193: 22 | B193: CODEVASF | E193: COMPOSIÇÃO DE PREÇO UNITÁRIO | I193: =H205 -> 12.17 | J193: =H207 -> 15.337851
B194: OBRA: | C194: =$C$2 -> CONSTRUÇÃO DE PONTE SOBRE O RIO SÃO DOMINGOS (CONTINUAÇÃO) | G194: DATA: | H194: =$H$2 -> NOVEMBRO / 2023
B195: SERVIÇO: | C195: =VLOOKUP(A193,ORÇAMENTO!$A$11:$I$40,3) -> ARMAÇÃO DE PILAR OU VIGA DE UMA ESTRUTURA CONVENCIONAL DE CONCRETO ARMADO UTILIZANDO AÇO CA-50 DE 10 MM | E195: SICRO | F195: =VLOOKUP(A193,ORÇAMENTO!$A$11:$I$40,4) -> 92778 | G195: UNIDADE: | H195: =VLOOKUP(A193,ORÇAMENTO!$A$11:$I$40,5) -> KG | I195: OK
B197: TIPO ITEM | C197: CODIGO ITEM | D197: DESCRIÇÃO ITEM | E197: UNIDADE ITEM | F197: COEFICIENTE | G197: PRECO UNITARIO | H197: CUSTO TOTAL
B198: INSUMO | C198: 39017 | D198: ESPACADOR / DISTANCIADOR CIRCULAR COM ENTRADA LATERAL, EM PLASTICO, PARA VERGALHAO *4,2 A 12,5* MM, COBRIMENTO 20 MM | E198: UN | F198: 0,5430000 | G198: 0,20 | H198: =ROUNDDOWN(F198*G198,2) -> 0.1
B199: INSUMO | C199: 43132 | D199: ARAME RECOZIDO 16 BWG, D = 1,65 MM (0,016 KG/M) OU 18 BWG, D = 1,25 MM (0,01 KG/M) | E199: KG | F199: 0,0250000 | G199: 25,40 | H199: 0.63
B200: COMPOSICAO | C200: 88238 | D200: AJUDANTE DE ARMADOR COM ENCARGOS COMPLEMENTARES | E200: H | F200: 0,0156000 | G200: 20,18 | H200: 0.31
B201: COMPOSICAO | C201: 88245 | D201: ARMADOR COM ENCARGOS COMPLEMENTARES | E201: H | F201: 0,0956000 | G201: 27,23 | H201: 2.6
B202: COMPOSICAO | C202: 92803 | D202: CORTE E DOBRA DE AÇO CA-50, DIÂMETRO DE 10,0 MM, UTILIZADO EM ESTRUTURAS DIVERSAS | E202: KG | F202: 1,0000000 | G202: 8.53 | H202: 8.53
H203: 0
B204: PRODUÇÃO DA EQUIPE | E204: 1 | F204: CUSTO | H204: =SUM(H198:H203) -> 12.17
B205: TOTAL | H205: =H204/E204 -> 12.17 | I205: OK
B206: BDI % | H206: =1+$M$1 -> 1.2603
B207: TOTAL DO SERVIÇO - R$ | H207: =H205*H206 -> 15.337851
A209: 23 | B209: CODEVASF | E209: COMPOSIÇÃO DE PREÇO UNITÁRIO | I209: =H221 -> 10.14 | J209: =H223 -> 12.779442
B210: OBRA: | C210: =$C$2 -> CONSTRUÇÃO DE PONTE SOBRE O RIO SÃO DOMINGOS (CONTINUAÇÃO) | G210: DATA: | H210: =$H$2 -> NOVEMBRO / 2023
B211: SERVIÇO: | C211: =VLOOKUP(A209,ORÇAMENTO!$A$11:$I$40,3) -> ARMAÇÃO DE PILAR OU VIGA DE UMA ESTRUTURA CONVENCIONAL DE CONCRETO ARMADO UTILIZANDO AÇO CA-50 DE 12,5 MM | E211: SICRO | F211: =VLOOKUP(A209,ORÇAMENTO!$A$11:$I$40,4) -> 92779 | G211: UNIDADE: | H211: =VLOOKUP(A209,ORÇAMENTO!$A$11:$I$40,5) -> KG | I211: OK
B213: TIPO ITEM | C213: CODIGO ITEM | D213: DESCRIÇÃO ITEM | E213: UNIDADE ITEM | F213: COEFICIENTE | G213: PRECO UNITARIO | H213: CUSTO TOTAL
B214: INSUMO | C214: 39017 | D214: ESPACADOR / DISTANCIADOR CIRCULAR COM ENTRADA LATERAL, EM PLASTICO, PARA VERGALHAO *4,2 A 12,5* MM, COBRIMENTO 20 MM | E214: UN | F214: 0,3670000 | G214: 0,20 | H214: =ROUNDDOWN(F214*G214,2) -> 0.07
B215: INSUMO | C215: 43132 | D215: ARAME RECOZIDO 16 BWG, D = 1,65 MM (0,016 KG/M) OU 18 BWG, D = 1,25 MM (0,01 KG/M) | E215: KG | F215: 0,0250000 | G215: 25,40 | H215: 0.63
B216: COMPOSICAO | C216: 88238 | D216: AJUDANTE DE ARMADOR COM ENCARGOS COMPLEMENTARES | E216: H | F216: 0,0114000 | G216: 20,18 | H216: 0.23
B217: COMPOSICAO | C217: 88245 | D217: ARMADOR COM ENCARGOS COMPLEMENTARES | E217: H | F217: 0,0698000 | G217: 27,23 | H217: 1.9
B218: COMPOSICAO | C218: 92804 | D218: CORTE E DOBRA DE AÇO CA-50, DIÂMETRO DE 12,5 MM, UTILIZADO EM ESTRUTURAS DIVERSAS | E218: KG | F218: 1,0000000 | G218: 7.31 | H218: 7.31
H219: 0
B220: PRODUÇÃO DA EQUIPE | E220: 1 | F220: CUSTO | H220: =SUM(H214:H219) -> 10.14
B221: TOTAL | H221: =H220/E220 -> 10.14 | I221: OK
B222: BDI % | H222: =1+$M$1 -> 1.2603
B223: TOTAL DO SERVIÇO - R$ | H223: =H221*H222 -> 12.779442
A225: =A209+1 -> 24 | B225: CODEVASF | E225: COMPOSIÇÃO DE PREÇO UNITÁRIO | I225: =H237 -> 9.33 | J225: =H239 -> 11.758599
B226: OBRA: | C226: =$C$2 -> CONSTRUÇÃO DE PONTE SOBRE O RIO SÃO DOMINGOS (CONTINUAÇÃO) | G226: DATA: | H226: =$H$2 -> NOVEMBRO / 2023
B227: SERVIÇO: | C227: =VLOOKUP(A225,ORÇAMENTO!$A$27:$I$41,3) -> ARMAÇÃO DE PILAR OU VIGA DE UMA ESTRUTURA CONVENCIONAL DE CONCRETO ARMADO UTILIZANDO AÇO CA-50 DE 16 MM | E227: SICRO | F227: =VLOOKUP(A225,ORÇAMENTO!$A$27:$I$40,4) -> 92780 | G227: UNIDADE: | H227: =VLOOKUP(A225,ORÇAMENTO!$A$27:$I$40,5) -> KG | I227: OK
B229: TIPO ITEM | C229: CODIGO ITEM | D229: DESCRIÇÃO ITEM | E229: UNIDADE ITEM | F229: COEFICIENTE | G229: PRECO UNITARIO | H229: CUSTO TOTAL
B230: INSUMO | C230: 39017 | D230: ESPACADOR / DISTANCIADOR CIRCULAR COM ENTRADA LATERAL, EM PLASTICO, PARA VERGALHAO *4,2 A 12,5* MM, COBRIMENTO 20 MM | E230: UN | F230: 0,2120000 | G230: 0,20 | H230: =ROUNDDOWN(F230*G230,2) -> 0.04
B231: INSUMO | C231: 43132 | D231: ARAME RECOZIDO 16 BWG, D = 1,65 MM (0,016 KG/M) OU 18 BWG, D = 1,25 MM (0,01 KG/M) | E231: KG | F231: 0,0250000 | G231: 25,40 | H231: 0.63
... 296 more rows

Sheet BDI SERV
B1: DETALHAMENTO DO BDI - SERVIÇOS
B4: Item | C4: Descrição dos Serviços | D4: % | E4: %
D5: PV | E5: CD
B7: 1 | C7: ADMINISTRAÇÃO CENTRAL | E7: 4
B8: 1.1 | C8: ESCRITÓRIO CENTRAL
B9: 1.2 | C9: VIAGENS
B10: 1.3 | C10: OUTROS
B12: 2 | C12: IMPOSTOS E TAXAS | D12: =SUM(D13:D16) -> 7.65 | E12: =SUM(E13:E16) -> 9.57
B13: 2.1 | C13: ISS (*) | D13: =0.8*5 -> 4 | E13: =ROUND(D13*1.2515,2) -> 5.01
B14: 2.2 | C14: PIS | D14: 0.65 | E14: 0.81
B15: 2.3 | C15: Cofins | D15: 3 | E15: 3.75
B16: 2.4 | C16: CONTRIBUIÇÃO PREVIDENCIÁRIA SOBRE A RENDA BRUTA | D16: 0 | E16: 0
B18: 3 | C18: TAXA DE RISCO | E18: =SUM(E19:E22) -> 2.68
B19: 3.1 | C19: SEGURO | E19: 0.61
B20: 3.2 | C20: RISCO | E20: 1.46
B21: 3.3 | C21: GARANTIA | E21: 0.61
B23: 4 | C23: DESPESAS FINANCEIRAS | E23: 1.02
B25: 5 | C25: LUCRO | E25: 8
C27: BDI - CALCULADO | E27: =ROUND((((1+(E7+E18)/100)*(1+E23/100)*(1+E25/100)/(1-D12/100)-1)*100),2) -> 26.03
A29: BDI = ((1+((AC+S+R+G)/100))x(1+DF/100)x(1+L/100)/(1-I/100)-1)*100
B31: BDI (CALCULADO): | D31: =ROUND((((1+((E7+E18)/100))*(1+E23/100)*(1+E25/100))/(1-D12/100)-1)*100,2) -> 26.03 | E31: %
A33: (*) ISS CONFORME LEI COMPLEMENTAR Nº 006/2003 E LEI COMPLEMENTAR Nº 59/2009 QUE ALTEROU A ALÍQUOTA PARA ITENS 7 A 7.05 (ART. 9º ) - QUANT. ESTIMADA DE MATERIAIS = 20%
A37: BDI EM CONFORMIDADE COM OS ACÓRDÃOS Nº 2369/2011 e ACÓRDÃO Nº 2.622/2013 - TCU - PLENÁRIO

Sheet CRONOGRAMA
B1: CRONOGRAMA FÍSICO-FINANCEIRO
B2: OBRA: | C2: =ORÇAMENTO!C5 -> CONSTRUÇÃO DE PONTE SOBRE O RIO SÃO DOMINGOS (CONTINUAÇÃO) | F2: VALOR: | G2: =ORÇAMENTO!I51 -> 1825219.63
F3: PRAZO: | G3: 150 DIAS
B5: ITEM | C5: ETAPAS/DESCRIÇAO | D5: FISICO/ FINANCEIRO | E5: TOTAL ETAPAS | F5: MÊS 1 | G5: MÊS 2 | H5: MÊS 3 | I5: MÊS 4 | J5: MÊS 5 | K5: TOTAL
A6: A | B6: =VLOOKUP(A6,ORÇAMENTO!$A$10:$I$51,2) -> 1 | C6: =VLOOKUP(A6,ORÇAMENTO!$A$10:$I$51,3) -> SERVIÇOS PRELIMINARES | D6: FISICO | E6: =ROUND(E7/$G$2,4) -> 0.1193 | F6: 0.2 | G6: 0.2 | H6: 0.2 | I6: 0.2 | J6: 0.2 | K6: =SUM(F6:J6) -> 1
D7: FINANCEIRO | E7: =ORÇAMENTO!I10 -> 217707.91 | F7: =ROUND($E$7*F6,2) -> 43541.58 | G7: 43541.58 | H7: =ROUND($E$7*H6,2) -> 43541.58 | I7: 43541.58 | J7: 43541.58 | K7: =SUM(F7:J7) -> 217707.9
A8: D | B8: =VLOOKUP(A8,ORÇAMENTO!$A$10:$I$51,2) -> 2 | C8: =VLOOKUP(A8,ORÇAMENTO!$A$10:$I$51,3) -> SUPERESTRUTURA E LAJES DE APROXIMAÇÃO | D8: FISICO | E8: =ROUND(E9/$G$2,4) -> 0.6794 | F8: 0.1 | G8: 0.7 | H8: 0.2 | I8: 0 | J8: 0 | K8: =SUM(F8:J8) -> 1
D9: FINANCEIRO | E9: =ORÇAMENTO!I17 -> 1239986.61 | F9: =ROUND($E$9*F8,2) -> 123998.66 | G9: =ROUND($E$9*G8,2) -> 867990.63 | H9: 247997.32 | I9: 0 | J9: 0 | K9: =SUM(F9:J9) -> 1239986.61
A10: E | B10: =VLOOKUP(A10,ORÇAMENTO!$A$10:$I$51,2) -> 3 | C10: =VLOOKUP(A10,ORÇAMENTO!$A$10:$I$51,3) -> SERVIÇOS DIVERSOS - PAVIMENTAÇÃO, LIMPEZA FINAL E SINALIZAÇÃO | D10: FISICO | E10: =ROUND(E11/$G$2,4) -> 0.2014 | F10: 0 | G10: 0 | H10: 0.25 | I10: 0.5 | J10: 0.25 | K10: =SUM(F10:J10) -> 1
D11: FINANCEIRO | E11: =ORÇAMENTO!I38 -> 367525.11 | F11: =ROUND($E$11*F10,2) -> 0 | G11: 0 | H11: =ROUND($E$11*H10,2) -> 91881.28 | I11: 183762.56 | J11: 91881.28 | K11: =SUM(F11:J11) -> 367525.12
B12: TOTAL | D12: FISICO | E12: =SUM(F12:J12) -> 1 | F12: =F13/E13 -> 0.09179182453 | G12: =G13/E13 -> 0.4994096026 | H12: =H13/E13 -> 0.2100679686 | I12: =I13/E13 -> 0.1245352265 | J12: =J13/E13 -> 0.07419537779 | K12: =SUM(F12:J12) -> 1
D13: FINANCEIRO | E13: =E7+E11+E9 -> 1825219.63 | F13: =F7+F11+F9 -> 167540.24 | G13: =G7+G11+G9 -> 911532.21 | H13: 383420.18 | I13: 227304.14 | J13: 135422.86 | K13: =SUM(F13:J13) -> 1825219.63
B14: OBSERVAÇÕES:
